Cogmind - Beta 17.1 @@@ ROGUE MODE // 2026.09.06 @ 01:28:05 Player: carrera Result: Destroyed by S-27 Virus with Autogun Performance ------------- Evolutions (5) 2500 Regions Visited (17) 3400 Robots Destroyed (138) 690 Value Destroyed (5330) 5330 Prototype IDs (57) 1140 Alien Tech Used (0) 0 Bonus (3659) 3659 TOTAL SCORE: 16719 Bonus ------- Follower Combat Kills 225 Aligned with FarCom 300 Met Data Miner 300 Met Warlord at Base 500 MAIN.C Attacked Warlord 500 Warlord Defense Kills 2032 Friendly Fire -198 Cogmind --------- Core Integrity 0/1000 Matter 103/300 Energy 99/100 System Corruption 1% Temperature Cool (0) Movement Core (50) Location -5/Warlord Parts ------- > --- POWER (2) -------- (None) > --- PROPULSION (4) --- (None) > --- UTILITY (7) ------ (None) > --- WEAPON (4) ------- (None) > --- INVENTORY (5) ---- Advanced Target Analyzer Ghost Barrier Long-range Tractor Beam Heavy Flak Cannon Katana Peak State ------------ > --- POWER ------------ Vortex Chain Reactor > --- PROPULSION ------- Flexi-carbon Leg Armored Leg Enhanced Biometal Leg Enhanced Biometal Leg > --- UTILITY ---------- Improved Cooling System Experimental Cooling System Large Storage Unit Experimental Armor Integrity Analyzer Improved Heavy Armor Plating Advanced Remote Shield > --- WEAPON ----------- Vortex Shotgun Vortex Cannon Vortex Cannon XL Autogun Subcomponent > --- INVENTORY -------- Light Fission Core Flexi-carbon Leg Flexi-carbon Leg Advanced Heat Sink Advanced Target Analyzer Layered Heavy Armor Plating Ghost Barrier Long-range Tractor Beam Enhanced Autogun Hypervelocity Coil Gun Railgun Heavy Flak Cannon Precision Rocket Launcher Katana [Rating: 129] Favorites ----------- Power Cooled Deuterium Engine Engine Cooled Deuterium Engine Power Core Light Fission Core Reactor Vortex Chain Reactor Propulsion Flexi-carbon Leg Treads Improved Treads Leg Flexi-carbon Leg Wheel Armored Wheel Utility Large Storage Unit Device Advanced Heat Sink Storage Large Storage Unit Processor Machine Analyzer Hackware Hacking Suite Protection Hardened Medium Armor Plating Weapon XL Autogun Subcomponent Energy Gun Vortex Shotgun Energy Cannon Vortex Cannon Ballistic Gun XL Autogun Subcomponent Ballistic Cannon Light Cannon Launcher Precision Rocket Launcher Impact Weapon Heavy Hammer Slashing Weapon Katana Build | -11 -10 -10 -9 -9 -9 -8 -8 -7 -7 -6 -6 -6 -5 -5 -5 -5 -5 ------- Run | Yrd Mat Min Mat Min Exi Min Mat Fac Sto Fac Low Dat Pro Fac Upp Upp War Slots Evolved 10 | . . . 2 . . . 2 2 . 2 . . . 2 . . . Power 1 | . . . . . . . . . . 1 . . . . . . . Propulsion 2 | . . . 1 . . . . . . . . . . 1 . . . Utility 5 | . . . 1 . . . . 2 . 1 . . . 1 . . . Weapon 2 | . . . . . . . 2 . . . . . . . . . . Parts Attached 99 | 6 9 3 10 . . 2 3 8 9 19 1 . 1 7 4 3 14 Power 12 | 1 . 1 2 . . 1 1 . 1 3 . . . . . 1 1 Engine 10 | 1 . 1 2 . . 1 1 . 1 3 . . . . . . . Core 1 | . . . . . . . . . . . . . . . . 1 . Reactor 1 | . . . . . . . . . . . . . . . . . 1 Propulsion 26 | 2 2 . 3 . . . . 4 4 4 . . . 3 . . 4 Treads 9 | . 2 . 3 . . . . 1 3 . . . . . . . . Leg 16 | 2 . . . . . . . 3 1 3 . . . 3 . . 4 Wheel 1 | . . . . . . . . . . 1 . . . . . . . Hover . | . . . . . . . . . . . . . . . . . . Flight . | . . . . . . . . . . . . . . . . . . Utility 31 | . 2 1 4 . . . . 4 3 6 1 . 1 3 1 1 4 Device 10 | . . 1 2 . . . . . . 2 1 . 1 . . . 3 Storage 5 | . 1 . . . . . . 2 1 1 . . . . . . . Processor 4 | . . . 1 . . . . . . 1 . . . 1 . . 1 Hackware 1 | . . . . . . . . . . 1 . . . . . . . Protection 11 | . 1 . 1 . . . . 2 2 1 . . . 2 1 1 . Artifact . | . . . . . . . . . . . . . . . . . . Weapon 30 | 3 5 1 1 . . 1 2 . 1 6 . . . 1 3 1 5 Energy Gun 5 | 2 . . . . . 1 . . 1 . . . . . . . 1 Energy Cannon 2 | . . . . . . . . . . . . . . . . . 2 Ballistic Gun 14 | 1 . . 1 . . . 2 . . 4 . . . 1 2 1 2 Ballistic Cannon 5 | . 3 1 . . . . . . . 1 . . . . . . . Launcher 2 | . 1 . . . . . . . . 1 . . . . . . . Special Weapon . | . . . . . . . . . . . . . . . . . . Impact Weapon 1 | . 1 . . . . . . . . . . . . . . . . Slashing Weapon 1 | . . . . . . . . . . . . . . . 1 . . Piercing Weapon . | . . . . . . . . . . . . . . . . . . Special Melee Weapon . | . . . . . . . . . . . . . . . . . . Unidentified Prototypes 14 | . . 1 . . . . 1 . 1 4 . . . . . . 7 Parts Lost 38 | . . 2 3 . . . . . 1 . 2 . 3 3 1 1 22 Power 5 | . . 1 1 . . . . . . . . . . . . 1 2 Propulsion 10 | . . . 2 . . . . . . . . . 1 1 . . 6 Utility 14 | . . . . . . . . . 1 . 2 . 1 1 . . 9 Weapon 9 | . . 1 . . . . . . . . . . 1 1 1 . 5 Highest Loss Streak 21 | . . 1 3 . . . . . 1 . 1 . 3 2 1 1 21 To Critical Strikes 1 | . . . 1 . . . . . . . . . . . . . . Average Backups 13 | 2 13 14 12 14 13 12 14 14 15 14 13 12 12 10 13 13 13 Power 1 | . . . . 1 3 2 2 2 2 1 1 1 1 1 1 . . Propulsion 1 | 1 3 4 2 4 2 2 1 2 1 1 2 2 2 . 1 1 1 Utility 4 | . 3 6 6 6 4 4 4 3 4 5 3 2 2 1 4 5 5 Weapon 5 | . 4 4 3 3 3 4 6 6 6 7 7 7 7 7 7 6 6 Tool/Special . | . . . . . . . . . . . . . . . . . . Unused Backups 49 | 1 4 . . . 8 1 6 5 6 5 . . . . 2 4 7 Power 5 | . . . . . 2 . 1 1 . 1 . . . . . . . Propulsion 12 | . 1 . . . 3 . 3 1 2 2 . . . . . . . Utility 16 | . 3 . . . 3 1 1 1 1 1 . . . . . 1 4 Weapon 13 | 1 . . . . . . 1 2 3 1 . . . . 2 . 3 Tool/Special 3 | . . . . . . . . . . . . . . . . 3 . Average Slot Usage (%) 88 | . 97 99 83 100 100 99 71 75 75 80 99 100 96 96 96 90 86 Engine 9 | . 14 14 2 11 11 11 9 7 7 13 13 13 13 11 11 7 3 Treads 13 | . 18 28 27 33 33 33 27 15 19 6 . . . . . . . Leg 11 | . 9 . . . . . . 7 3 11 20 20 18 22 23 23 22 Device 9 | . . 1 9 11 11 11 8 7 6 11 12 13 14 12 13 7 9 Storage 9 | . 13 14 11 11 11 11 9 14 15 6 6 6 6 5 5 5 5 Processor 2 | . . . 6 . . . . . . 5 6 6 6 10 7 2 1 Protection 11 | . 11 12 5 11 11 11 9 14 15 8 12 13 11 9 8 14 12 Ballistic Gun 12 | . . . 5 22 22 12 8 7 6 12 21 26 21 20 20 20 12 Ballistic Cannon 2 | . 18 26 10 . . . . . . . . . . . . . . Peak Build Rating 129 | 5 11 19 23 17 21 25 56 70 70 82 75 73 73 82 80 85 129 Average Rating 58 | 3 9 11 17 17 19 24 53 63 68 74 72 73 70 79 79 81 100 On Entrance 46 | . 5 11 18 17 17 21 25 55 70 64 75 73 73 64 76 80 84 Avg Prop Armor Cover (%) 8 | . . . . . . . . . . 8 . . . . . . . Naked Turns 9 | . . . . . . . . . . . . . . . . . 9 Heaviest Build 142 | 7 30 32 34 34 34 40 50 53 64 80 81 73 78 73 79 94 142 Greatest Support 96 | 20 46 46 69 66 66 66 66 66 68 56 56 56 56 76 71 71 96 Greatest Overweight (x) 6 | . 1 . . . . . . . 2 5 1 1 1 . 1 1 6 Average Overweight (x) . | . . . . . . . . . . 2 1 1 1 . . 1 . Largest Inventory Capacity 15 | 5 15 15 15 15 15 15 15 15 15 15 15 15 15 15 15 15 15 Average Capacity 14 | 5 14 15 15 15 15 15 15 15 15 15 15 15 15 15 15 15 14 Most Carried 15 | 4 15 15 14 15 15 15 15 15 15 15 15 12 14 15 15 15 15 Average Carried 14 | 2 13 14 12 14 14 14 14 14 14 14 13 12 12 10 14 13 14 Final Capacity 15 | 5 15 15 15 15 15 15 15 15 15 15 15 15 15 15 15 15 5 Final Carried 15 | 3 15 15 14 15 15 15 15 15 15 15 12 12 14 15 15 14 5 Class Distribution -------------------- 35% | Tank 30% | Mutant 17% | Scavenger-Tank 13% | Skirmisher Dominant Class ---------------- Mutant | -10/Materials Mutant | -10/Mines Mutant | -9/Materials Mutant | -9/Mines Mutant | -9/Exiles Mutant | -8/Mines Skirmisher | -8/Materials Tank | -7/Factory Tank | -7/Storage Skirmisher | -6/Factory Tank | -6/Lower Caves Tank | -6/Data Miner Tank | -5/Proximity Caves Skirmisher | -5/Factory Scavenger-Tank | -5/Upper Caves Scavenger-Tank | -5/Upper Caves Scavenger-Tank | -5/Warlord Resources | -11 -10 -10 -9 -9 -9 -8 -8 -7 -7 -6 -6 -6 -5 -5 -5 -5 -5 ----------- Run | Yrd Mat Min Mat Min Exi Min Mat Fac Sto Fac Low Dat Pro Fac Upp Upp War Matter Collected 5083 | 252 138 225 162 125 86 52 306 340 705 1131 277 . 340 389 170 142 243 Remotely . | . . . . . . . . . . . . . . . . . . Salvage Created 5564 | 44 129 64 222 87 . 81 469 241 1053 1448 116 . 438 409 205 96 462 Parts 254 | 4 11 1 16 5 . 7 25 8 55 59 12 . 13 20 3 2 13 Haulers Intercepted 10 | . 1 . . . . . 2 . 5 2 . . . . . . . Recyclers Shooed 2 | . 1 . . . . . 1 . . . . . . . . . . Parts Field Recycled . | . . . . . . . . . . . . . . . . . . Retrieved Matter . | . . . . . . . . . . . . . . . . . . Parts Self-Destructed 26 | . . . . . . . . . . . 11 . 10 . 3 2 . Prevented . | . . . . . . . . . . . . . . . . . . Parts Restored . | . . . . . . . . . . . . . . . . . . Kills | -11 -10 -10 -9 -9 -9 -8 -8 -7 -7 -6 -6 -6 -5 -5 -5 -5 -5 ------- Run | Yrd Mat Min Mat Min Exi Min Mat Fac Sto Fac Low Dat Pro Fac Upp Upp War Combat Hostiles Destroyed 113 | 1 6 4 8 2 . 3 8 4 17 18 5 . 9 6 3 1 18 Guns 68 | 1 . . 2 2 . 3 7 4 16 18 1 . 4 6 3 1 . Cannons 16 | . 6 4 4 . . . . . . . . . . . . . 2 AOE 29 | . . . 2 . . . 1 . 1 . 4 . 5 . . . 16 Classes Destroyed 17 | 1 4 . 2 . . . 3 1 1 1 . . 2 . . . 2 Worker 3 | . 2 . . . . . . . . 1 . . . . . . . Builder 3 | . 1 . . . . . . . 1 . . . . 1 . . . Hauler 10 | . 1 . . . . . 2 . 5 2 . . . . . . . Recycler 3 | . . . . . . . 2 . . 1 . . . . . . . Mechanic 1 | . . . 1 . . . . . . . . . . . . . . Watcher 4 | . . . . . . . 1 . . 3 . . . . . . . Swarmer 25 | . 6 3 4 . . 3 3 . 2 . 4 . . . . . . Grunt 54 | 1 . . 3 2 . . 4 . 9 11 . . 6 3 1 . 14 Brawler 3 | . . . . . . . 1 . 1 . . . . . . . 1 Duelist 1 | . . . . . . . . . 1 . . . . . . . . Protector 1 | . . . . . . . . . . . . . . . . . 1 Sentry 11 | . . . 1 . . . . 3 2 2 . . . 2 1 . . Specialist 2 | . . . . . . . . . . . . . . . . . 2 Hunter 7 | . . . . . . . . . . 2 1 . 2 1 1 . . Programmer 7 | . . . . . . . . 1 3 3 . . . . . . . Behemoth 2 | . . . . . . . . . . . . . 1 . . 1 . Samaritan 1 | . . . . . . . . . . . . . 1 . . . . Best Kill Streak 10 | 1 3 3 4 1 . 3 10 2 6 5 4 . 6 5 2 1 9 Combat Bots Only 9 | 1 3 3 4 1 . 3 8 2 6 4 4 . 6 4 2 1 9 Max Kills in Single Turn 4 | 1 1 1 3 1 . 2 3 1 2 2 4 . 2 1 1 1 3 Gunslinging 1 | . . . . . . 1 . . . . . . . . . . . Exploded 4 | . . . 2 . . . 1 . 1 . 4 . 2 . . . 3 Melee . | . . . . . . . . . . . . . . . . . . Uniques/NPCs Destroyed 1 | . . 1 . . . . . . . . . . . . . . . YI-UF0 (-10/Mines) Combat | -11 -10 -10 -9 -9 -9 -8 -8 -7 -7 -6 -6 -6 -5 -5 -5 -5 -5 -------- Run | Yrd Mat Min Mat Min Exi Min Mat Fac Sto Fac Low Dat Pro Fac Upp Upp War Hostile Shots Fired 802 | 3 27 65 32 16 . 6 7 26 45 104 47 . 54 34 38 39 259 Missed 251 | 2 7 21 10 6 . 1 3 11 12 31 13 . 21 9 13 8 83 Hits 551 | 1 20 44 22 10 . 5 4 15 33 73 34 . 33 25 25 31 176 Melee 33 | . . . . . . . . . 6 . . . . . . . 27 Projectile 518 | 1 20 44 22 10 . 5 4 15 27 73 34 . 33 25 25 31 149 AOE 15 | . . 15 . . . . . . . . . . . . . . . Critical Strikes 17 | . . 3 2 . . . . . 4 1 1 . . 1 . . 5 Part Disruptions 1 | . . . . . . . . . . . . . . . . . 1 Damage Taken 10360 | 11 161 786 227 134 . 35 35 172 666 1233 549 . 686 540 498 654 3973 Core 1419 | . 32 129 22 . . . 7 12 33 71 37 . 64 70 31 65 846 Absorbed by Shields 288 | . . . . . . . . . . . . . . . . . 288 Redirected to Shielding 24 | . 5 19 . . . . . . . . . . . . . . . Regen/Repaired (Parts) 536 | . . . . . . . . . . . . . . . . . 536 Core Remaining (%) 83 | 100 . 35 . . . 94 98 . 93 . . . 79 . . . . Volleys Fired 306 | 2 19 19 14 10 . 4 18 12 43 52 16 . 27 24 11 10 25 Largest 4 | 2 2 2 2 2 . 2 1 1 1 4 4 . 4 4 4 4 3 Hottest 160 | 60 60 60 60 40 . 83 60 60 60 80 103 . 80 85 95 95 160 Shots Fired 700 | 4 33 37 28 20 . 8 18 12 43 163 59 . 85 74 37 40 39 Gun 577 | 4 . . 12 20 . 8 18 12 43 163 58 . 79 74 37 40 9 Cannon 97 | . 33 37 14 . . . . . . . . . . . . . 13 Launcher 26 | . . . 2 . . . . . . . 1 . 6 . . . 17 Special . | . . . . . . . . . . . . . . . . . . Kinetic 654 | 2 33 37 26 20 . 4 18 12 43 163 58 . 79 74 37 40 8 Thermal 4 | . . . . . . 4 . . . . . . . . . . . Explosive 26 | . . . 2 . . . . . . . 1 . 6 . . . 17 Electromagnetic 2 | 2 . . . . . . . . . . . . . . . . . Entropic 14 | . . . . . . . . . . . . . . . . . 14 Robot Hit Streak 14 | 1 3 10 8 4 . 4 10 13 12 14 3 . 7 14 10 5 8 Robot Miss Streak 5 | 3 3 4 1 1 . 2 4 1 5 5 5 . 5 3 5 4 3 Penetration Max . | . . . . . . . . . . . . . . . . . . Secondary Targets 4 | . . . . . . 1 . . . 2 . . 1 . . . . Max Gunslinging Chain 1 | . . . . . . 1 . . . 1 . . 1 . . . . Shots Hit Robots 415 | 1 18 19 18 14 . 6 18 12 34 86 21 . 47 54 22 22 23 Core Hits 264 | 1 6 5 13 5 . 3 15 8 38 47 7 . 28 21 11 6 50 Critical Kills . | . . . . . . . . . . . . . . . . . . Critical Parts Destroyed 3 | . 1 . . . . . . . . . . . . 1 1 . . Critical Strikes 9 | . 3 1 . . . . . . . . . . . 1 1 . 3 Destroy 2 | . . . . . . . . . . . . . . 1 1 . . Blast 3 | . 2 1 . . . . . . . . . . . . . . . Smash 1 | . 1 . . . . . . . . . . . . . . . . Sunder 3 | . . . . . . . . . . . . . . . . . 3 Melee Attacks 16 | . 13 . 1 . . 1 . . . . . . . . 1 . . Impact 15 | . 13 . 1 . . 1 . . . . . . . . . . . Slashing 1 | . . . . . . . . . . . . . . . 1 . . Piercing . | . . . . . . . . . . . . . . . . . . Sneak Attacks 3 | . 3 . . . . . . . . . . . . . . . . Combat Hostiles . | . . . . . . . . . . . . . . . . . . Follow-up Attacks . | . . . . . . . . . . . . . . . . . . Damage Inflicted 18376 | 15 538 328 412 149 . 177 1495 1024 2577 2912 706 . 1855 1019 342 520 4307 Guns 10626 | 15 . . 128 149 . 69 911 1024 2117 2869 390 . 995 1019 342 520 78 Cannons 1238 | . 270 328 139 . . . . . . . . . . . . . 501 Explosions 6090 | . . . 142 . . . 584 . 460 . 316 . 860 . . . 3728 Melee 350 | . 268 . . . . 82 . . . . . . . . . . . Ramming 72 | . . . 3 . . 26 . . . 43 . . . . . . . Kinetic 11312 | . 270 328 267 149 . 33 911 1024 2117 2869 390 . 995 1019 342 520 78 Thermal 620 | . . . . . . 36 584 . . . . . . . . . . Explosive 5506 | . . . 142 . . . . . 460 . 316 . 860 . . . 3728 Electromagnetic 15 | 15 . . . . . . . . . . . . . . . . . Impact 350 | . 268 . . . . 82 . . . . . . . . . . . Slashing . | . . . . . . . . . . . . . . . . . . Piercing . | . . . . . . . . . . . . . . . . . . Entropic 501 | . . . . . . . . . . . . . . . . . 501 Highest Corruption 7 | . . . . . . . . 1 7 4 4 4 4 . . . 1 Average Corruption 2 | . . . . . . . . 1 1 3 4 4 4 . . . 1 Corruption Purged . | . . . . . . . . . . . . . . . . . . Corruption Blocked . | . . . . . . . . . . . . . . . . . . Effects 81 | . . . . . . . . 3 11 30 16 6 15 . . . . Message Errors 20 | . . . . . . . . 1 3 6 4 3 3 . . . . Matter Fused 26 | . . . . . . . . 1 3 7 5 2 8 . . . . Heat Flow Errors 11 | . . . . . . . . 1 1 6 2 . 1 . . . . Energy Discharges 7 | . . . . . . . . . 2 3 1 . 1 . . . . Data Loss (minor) 7 | . . . . . . . . . 1 3 1 1 1 . . . . Data Loss (major) 5 | . . . . . . . . . 1 2 2 . . . . . . Misfires 1 | . . . . . . . . . . 1 . . . . . . . Alerts 2 | . . . . . . . . . . 1 . . 1 . . . . Weapon Failures 2 | . . . . . . . . . . 1 1 . . . . . . Overload Shots . | . . . . . . . . . . . . . . . . . . Overflow Damage 555 | . 242 13 6 . . 70 91 . . . 25 . . . . . 108 Projectiles 47 | . 34 13 . . . . . . . . . . . . . . . Explosions 230 | . . . 6 . . . 91 . . . 25 . . . . . 108 Melee 278 | . 208 . . . . 70 . . . . . . . . . . . Knockbacks 9 | . 4 3 1 . . 1 . . . . . . . . . . . Impact 2 | . 1 . . . . 1 . . . . . . . . . . . Kinetic 7 | . 3 3 1 . . . . . . . . . . . . . . Secondary . | . . . . . . . . . . . . . . . . . . Self-Inflicted Damage 147 | . . . . . . . . . . . 11 . . . . . 136 Shots 5 | . . . . . . . . . . . 1 . . . . . 4 Rammed 5 | . 1 . 1 . . 3 . . . . . . . . . . . Targets Rammed 11 | . 1 . 1 . . 3 . . . 6 . . . . . . . Kicked 6 | . . . . . . . . . . 6 . . . . . . . Crushed . | . . . . . . . . . . . . . . . . . . Highest Temperature 522 | 6 . 36 . . . . 177 202 522 281 275 . 168 . . 61 . Average Temperature 73 | 6 . 19 . . . . 57 69 81 73 116 . 105 . . 33 . Received Heat Transfer 1724 | 6 . 108 81 75 . . 9 30 204 315 . . 135 126 78 108 449 Effects 7 | . . . . . . . . . 4 . 3 . . . . . . Shutdowns 1 | . . . . . . . . . 1 . . . . . . . . Interference 3 | . . . . . . . . . . . 3 . . . . . . Short Circuit 1 | . . . . . . . . . 1 . . . . . . . . Damage (minor) 2 | . . . . . . . . . 2 . . . . . . . . Siege Activations . | . . . . . . . . . . . . . . . . . . Martial Activations . | . . . . . . . . . . . . . . . . . . Shielding Activations . | . . . . . . . . . . . . . . . . . . Robots Disrupted . | . . . . . . . . . . . . . . . . . . Combat Hostiles . | . . . . . . . . . . . . . . . . . . Robots Corrupted 2 | . 2 . . . . . . . . . . . . . . . . Combat Hostiles . | . . . . . . . . . . . . . . . . . . Parts Fried 4 | . 3 . . . . . . . 1 . . . . . . . . Impact Corruptions 8 | . 7 . . . . 1 . . . . . . . . . . . Robots Melted . | . . . . . . . . . . . . . . . . . . Combat Hostiles . | . . . . . . . . . . . . . . . . . . Parts Melted . | . . . . . . . . . . . . . . . . . . Heat Transferred 424 | . . . . . . 74 350 . . . . . . . . . . Parts Sabotaged 1 | . . . . . . . . . . . . . . . . . 1 Parts Stolen . | . . . . . . . . . . . . . . . . . . Parts Stripped . | . . . . . . . . . . . . . . . . . . Power Chain Reactions . | . . . . . . . . . . . . . . . . . . Alert | -11 -10 -10 -9 -9 -9 -8 -8 -7 -7 -6 -6 -6 -5 -5 -5 -5 -5 ------- Run | Yrd Mat Min Mat Min Exi Min Mat Fac Sto Fac Low Dat Pro Fac Upp Upp War Maximum Alert Level 1 | . . . . . . . 1 . 1 1 . . . . . . . Low Security (%) 80 | 100 100 100 100 100 . 100 71 100 27 68 . . . 100 . . . Level 1 19 | . . . . . . . 28 . 72 31 . . . . . . . Level 2 . | . . . . . . . . . . . . . . . . . . Level 3 . | . . . . . . . . . . . . . . . . . . Level 4 . | . . . . . . . . . . . . . . . . . . Level 5 . | . . . . . . . . . . . . . . . . . . High Security . | . . . . . . . . . . . . . . . . . . Max Security . | . . . . . . . . . . . . . . . . . . Peak Influence 348 | 20 80 60 103 79 . 64 267 102 339 348 . . . 94 . . . Initial 144 | . 6 . . 34 . . 17 102 10 144 . . . . . . . Average 72 | 3 18 6 65 28 . 4 77 14 235 111 . . . 22 . . . Influence Increases 3708 | 20 226 70 223 100 . 75 334 138 923 611 120 . 210 198 70 30 360 Destroy 0b10 Robot/C 2340 | 20 120 60 160 40 . 60 160 80 460 360 100 . 180 120 60 20 340 Destroy 0b10 Robot/NC 135 | . 20 . 5 . . 5 25 . 35 35 . . . 5 . . 5 Destroy Leader 500 | . 22 10 30 10 . 10 26 20 152 110 20 . 30 40 10 10 . Allied During Kill 129 | . . . . . . . . . 129 . . . . . . . . Successful Hack 182 | . 11 . . 5 . . 12 35 39 66 . . . 14 . . . Disable Machine 195 | . 15 . 15 . . . 75 . 75 15 . . . . . . . Destroy Structure 107 | . 8 . 13 . . . 36 3 33 10 . . . 4 . . . Lose Combat Pursuer 120 | . 30 . . 45 . . . . . 15 . . . 15 . . 15 Influence Decreases 3591 | 10 236 70 135 173 15 29 154 340 630 589 440 19 210 114 154 30 243 Entered New Map 590 | . 4 . . 54 15 . 29 124 14 173 126 19 . . 32 . . Time Decay 2546 | 10 232 70 120 119 . 29 125 216 446 416 294 . 210 84 112 30 33 Lost Part 295 | . . . 15 . . . . . 10 . 20 . . 30 10 . 210 Lost Ally 160 | . . . . . . . . . 160 . . . . . . . . Squads Dispatched 25 | . . . 1 . . . . 5 9 8 . . . 2 . . . Investigation 4 | . . . 1 . . . . 1 1 . . . . 1 . . . Extermination 8 | . . . . . . . . 1 3 4 . . . . . . . Reinforcement 3 | . . . . . . . . . . 3 . . . . . . . Assault 2 | . . . . . . . . . 2 . . . . . . . . Garrison 8 | . . . . . . . . 3 3 1 . . . 1 . . . Intercept . | . . . . . . . . . . . . . . . . . . Searches Triggered . | . . . . . . . . . . . . . . . . . . Construction Impeded 1 | . . . . . . . . . . 1 . . . . . . . Haulers Reinforced 1 | . . . . . . . . . . 1 . . . . . . . Active Scanning Responses . | . . . . . . . . . . . . . . . . . . Cargo Convoy Interrupts . | . . . . . . . . . . . . . . . . . . Stealth | -11 -10 -10 -9 -9 -9 -8 -8 -7 -7 -6 -6 -6 -5 -5 -5 -5 -5 --------- Run | Yrd Mat Min Mat Min Exi Min Mat Fac Sto Fac Low Dat Pro Fac Upp Upp War Distress Signals 5 | . . . 1 . . . 1 . 2 . . . . . . . 1 Communications Jammed . | . . . . . . . . . . . . . . . . . . Distress Signals . | . . . . . . . . . . . . . . . . . . Times Spotted 202 | 1 12 6 13 5 . 3 9 8 39 31 5 . 9 6 4 1 50 Peak Tracking Total 25 | 1 4 3 5 3 . 3 4 2 14 6 4 . 4 3 2 1 25 Tactical Retreats 6 | . 1 . . 2 . . . . . 1 . . . 1 . . 1 Traps | -11 -10 -10 -9 -9 -9 -8 -8 -7 -7 -6 -6 -6 -5 -5 -5 -5 -5 ------- Run | Yrd Mat Min Mat Min Exi Min Mat Fac Sto Fac Low Dat Pro Fac Upp Upp War Traps Triggered 6 | . . . . . . . . 2 1 2 . . . 1 . . . Indirectly . | . . . . . . . . . . . . . . . . . . Trap Hack Attempts . | . . . . . . . . . . . . . . . . . . Triggered . | . . . . . . . . . . . . . . . . . . Disarmed . | . . . . . . . . . . . . . . . . . . Reprogrammed . | . . . . . . . . . . . . . . . . . . Reused . | . . . . . . . . . . . . . . . . . . Traps Extracted . | . . . . . . . . . . . . . . . . . . Installed . | . . . . . . . . . . . . . . . . . . Triggered . | . . . . . . . . . . . . . . . . . . Machines | -11 -10 -10 -9 -9 -9 -8 -8 -7 -7 -6 -6 -6 -5 -5 -5 -5 -5 ---------- Run | Yrd Mat Min Mat Min Exi Min Mat Fac Sto Fac Low Dat Pro Fac Upp Upp War Machines Disabled 13 | . 1 . 1 . . . 5 . 5 1 . . . . . . . Max in Single Turn 3 | . 1 . 1 . . . 3 . 1 1 . . . . . . . Garrison Access 1 | . . . . . . . . . 1 . . . . . . . . Machines Repaired . | . . . . . . . . . . . . . . . . . . Machines Dismantled . | . . . . . . . . . . . . . . . . . . Machines Sabotaged . | . . . . . . . . . . . . . . . . . . Overloaded Fab Kills . | . . . . . . . . . . . . . . . . . . Hacking | -11 -10 -10 -9 -9 -9 -8 -8 -7 -7 -6 -6 -6 -5 -5 -5 -5 -5 --------- Run | Yrd Mat Min Mat Min Exi Min Mat Fac Sto Fac Low Dat Pro Fac Upp Upp War Machines Accessed 53 | . 5 . 2 1 2 . 3 11 12 7 . 4 . 1 1 1 3 Terminals 34 | . 5 . . 1 . . 2 8 11 6 . . . 1 . . . Fabricators 1 | . . . . . . . . 1 . . . . . . . . . Repair Stations 1 | . . . 1 . . . . . . . . . . . . . . Recycling Units . | . . . . . . . . . . . . . . . . . . Scanalyzers 3 | . . . 1 . . . 1 1 . . . . . . . . . Garrison Access 3 | . . . . . . . . 1 1 1 . . . . . . . Total Hacks 148 | . 10 . 5 5 8 . 11 23 24 20 . 31 . 2 1 1 7 Successful 94 | . 8 . 4 1 8 . 5 7 10 9 . 31 . 2 1 1 7 Failed 54 | . 2 . 1 4 . . 6 16 14 11 . . . . . . . Catastrophic 9 | . 1 . . . . . . 4 2 2 . . . . . . . Database Lockouts . | . . . . . . . . . . . . . . . . . . Manual 59 | . 4 . . . 1 . 7 8 18 18 . . . 2 . . 1 Terminals 83 | . 10 . . 5 . . 8 16 23 19 . . . 2 . . . Fabricators 1 | . . . . . . . . 1 . . . . . . . . . Repair Stations 2 | . . . 2 . . . . . . . . . . . . . . Recycling Units . | . . . . . . . . . . . . . . . . . . Scanalyzers 8 | . . . 3 . . . 3 2 . . . . . . . . . Garrison Access 6 | . . . . . . . . 4 1 1 . . . . . . . Terminal Hacks 65 | . 8 . . 1 8 . . 4 3 1 . 31 . . 1 1 7 Record 27 | . 5 . . . 7 . . 2 . . . 11 . . . . 2 Part Schematic 13 | . . . . . . . . . . . . 13 . . . . . Robot Schematic 4 | . . . . . . . . . . . . 4 . . . . . Prototype ID Bank 8 | . . . . . . . . 1 . . . 3 . . . . 4 Open Door 6 | . . . . . . . . . 3 . . . . . 1 1 1 Branch Access Points 1 | . 1 . . . . . . . . . . . . . . . . Alert Level 2 | . 1 . . . . . . . . 1 . . . . . . . Locate Traps 2 | . 1 . . . . . . 1 . . . . . . . . . Zone Layout 1 | . . . . 1 . . . . . . . . . . . . . Proto ID Catalog 1 | . . . . . 1 . . . . . . . . . . . . Fabricator Hacks . | . . . . . . . . . . . . . . . . . . Repair Station Hacks 1 | . . . 1 . . . . . . . . . . . . . . Scan Component 1 | . . . 1 . . . . . . . . . . . . . . Recycling Unit Hacks . | . . . . . . . . . . . . . . . . . . Scanalyzer 5 | . . . 3 . . . 1 1 . . . . . . . . . Retrieve Study 5 | . . . 3 . . . 1 1 . . . . . . . . . Garrison Access Hacks . | . . . . . . . . . . . . . . . . . . Unauthorized Hacks 23 | . . . . . . . 4 2 7 8 . . . 2 . . . Terminals 23 | . . . . . . . 4 2 7 8 . . . 2 . . . Botnet 9 | . . . . . . . 2 1 2 3 . . . 1 . . . Skim 14 | . . . . . . . 2 1 5 5 . . . 1 . . . Fabricators . | . . . . . . . . . . . . . . . . . . Repair Stations . | . . . . . . . . . . . . . . . . . . Recycling Units . | . . . . . . . . . . . . . . . . . . Scanalyzers . | . . . . . . . . . . . . . . . . . . Garrison Access . | . . . . . . . . . . . . . . . . . . Data Cores Recovered . | . . . . . . . . . . . . . . . . . . Used . | . . . . . . . . . . . . . . . . . . Hacking Detections 33 | . 2 . 2 1 . . 3 10 7 7 . . . 1 . . . Full Trace Events 3 | . . . 1 . . . . 1 1 . . . . . . . . Feedback Events . | . . . . . . . . . . . . . . . . . . Feedback Blocked . | . . . . . . . . . . . . . . . . . . Robot Schematics Acquired 4 | . . . . . . . . . . . . 4 . . . . . Robots Built . | . . . . . . . . . . . . . . . . . . Authchips . | . . . . . . . . . . . . . . . . . . Time . | . . . . . . . . . . . . . . . . . . Total Robot Build Rating . | . . . . . . . . . . . . . . . . . . Part Schematics Acquired 13 | . . . . . . . . . . . . 13 . . . . . Parts Built . | . . . . . . . . . . . . . . . . . . Authchips . | . . . . . . . . . . . . . . . . . . Time . | . . . . . . . . . . . . . . . . . . Total Part Build Rating . | . . . . . . . . . . . . . . . . . . Part Studies Acquired 5 | . . . 3 . . . 1 1 . . . . . . . . . Parts Repaired . | . . . . . . . . . . . . . . . . . . Time . | . . . . . . . . . . . . . . . . . . Parts Recycled . | . . . . . . . . . . . . . . . . . . Recycled Matter . | . . . . . . . . . . . . . . . . . . Retrieved Matter . | . . . . . . . . . . . . . . . . . . Retrieved Components . | . . . . . . . . . . . . . . . . . . Parts Scanalyzed . | . . . . . . . . . . . . . . . . . . Part Schematics Acquired . | . . . . . . . . . . . . . . . . . . Parts Damaged . | . . . . . . . . . . . . . . . . . . Bothacking | -11 -10 -10 -9 -9 -9 -8 -8 -7 -7 -6 -6 -6 -5 -5 -5 -5 -5 ------------ Run | Yrd Mat Min Mat Min Exi Min Mat Fac Sto Fac Low Dat Pro Fac Upp Upp War Used RIF Installer . | . . . . . . . . . . . . . . . . . . Robots Hacked . | . . . . . . . . . . . . . . . . . . Non-combat . | . . . . . . . . . . . . . . . . . . Combat . | . . . . . . . . . . . . . . . . . . Robot Hacks Applied . | . . . . . . . . . . . . . . . . . . Relay Couplers Released 1 | . . . . . . . . . 1 . . . . . . . . Machine Destruction 1 | . . . . . . . . . 1 . . . . . . . . Fabnet Peak Effective % . | . . . . . . . . . . . . . . . . . . Robots Rewired 2 | . . . . . . . . . 2 . . . . . . . . Allies Hacked . | . . . . . . . . . . . . . . . . . . Hacks Repelled . | . . . . . . . . . . . . . . . . . . Allies | -11 -10 -10 -9 -9 -9 -8 -8 -7 -7 -6 -6 -6 -5 -5 -5 -5 -5 -------- Run | Yrd Mat Min Mat Min Exi Min Mat Fac Sto Fac Low Dat Pro Fac Upp Upp War Total Allies 10 | . . . . . . . . . 10 . . . . . . . . Largest Group 10 | . . . . . . . . . 10 . . . . . . . . Highest-Rated Group 173 | . . . . . . . . . 173 . . . . . . . . Highest-Rated Ally 29 | . . . . . . . . . 29 . . . . . . . . Total Orders . | . . . . . . . . . . . . . . . . . . Ally Attacks 71 | . . . . . . . . . 71 . . . . . . . . Total Damage 876 | . . . . . . . . . 876 . . . . . . . . Kills 8 | . . . . . . . . . 8 . . . . . . . . Allies Corrupted . | . . . . . . . . . . . . . . . . . . Allies Melted . | . . . . . . . . . . . . . . . . . . Intel | -11 -10 -10 -9 -9 -9 -8 -8 -7 -7 -6 -6 -6 -5 -5 -5 -5 -5 ------- Run | Yrd Mat Min Mat Min Exi Min Mat Fac Sto Fac Low Dat Pro Fac Upp Upp War Active Infowar (turns) 4299 | . . 81 99 . . . . . . 1446 634 149 673 389 452 376 . Optics 535 | . . . . . . . . . . . . . . 387 148 . . Sensors 180 | . . 81 99 . . . . . . . . . . . . . . Machine Analysis 4119 | . . . . . . . . . . 1446 634 149 673 389 452 376 . Robot Analysis Total . | . . . . . . . . . . . . . . . . . . Derelict Logs Recovered 4 | . . 2 . . . . . . . . 1 . 1 . . . . Drone Launches . | . . . . . . . . . . . . . . . . . . Drone Recoveries . | . . . . . . . . . . . . . . . . . . Exploration | -11 -10 -10 -9 -9 -9 -8 -8 -7 -7 -6 -6 -6 -5 -5 -5 -5 -5 ------------- Run | Yrd Mat Min Mat Min Exi Min Mat Fac Sto Fac Low Dat Pro Fac Upp Upp War Turns Passed 13638 | 101 916 604 254 331 940 935 417 1263 1262 1646 656 149 673 389 452 787 1863 Spaces Moved 7110 | 72 467 339 116 188 579 310 219 807 654 789 319 79 318 254 251 394 955 Core 37 | 18 . . . . . . . . . . . . . . . . 19 Treads 3133 | . 331 339 116 188 579 310 219 489 512 50 . . . . . . . Legs 3587 | 54 136 . . . . . . 318 142 386 319 79 318 254 251 394 936 Wheels 353 | . . . . . . . . . . 353 . . . . . . . Hover . | . . . . . . . . . . . . . . . . . . Flight . | . . . . . . . . . . . . . . . . . . Fastest Speed 50 | 50 120 160 160 160 160 160 160 123 123 120 190 190 190 120 120 190 50 Average Speed 166 | 102 167 160 160 160 160 160 160 145 158 182 190 190 190 120 160 190 183 Slowest Speed 350 | 120 190 160 160 160 160 160 160 160 330 245 190 190 190 120 190 190 350 Overloaded Moves . | . . . . . . . . . . . . . . . . . . Propulsion Burnouts . | . . . . . . . . . . . . . . . . . . Robots Hopped . | . . . . . . . . . . . . . . . . . . Potential Cave-ins 6 | . . . . . . . . . . . . . . . . . 6 Cave-ins Triggered . | . . . . . . . . . . . . . . . . . . Exploration Rate (%) 49 | 9 59 78 15 33 92 67 20 25 87 28 41 69 53 6 56 63 92 Regions Visited 17 Branch Regions 11 Pre-discovered Areas 3 | . . 1 . . . . . . . 1 . 1 . . . . . Known Exits Taken 5 | . 1 . . . . . . . . 1 . . 1 1 1 . . Unknown Exits Taken 12 | 1 . 1 1 1 1 1 1 1 1 . 1 1 . . . 1 . Scrap Searched 11 | . . 2 . 1 . 1 . . . . 2 . 1 . 2 2 . Spaces Dug 9 | . 8 . . . . . . . . . . . . . 1 . . Terrain Destroyed 290 | . 8 1 13 . . . 37 2 34 8 13 . 81 . 1 . 92 Melee 9 | . 8 . . . . . . . . . . . . . 1 . . Projectile 61 | . . 1 . . . . 14 2 29 8 . . . . . . 7 AOE 220 | . . . 13 . . . 23 . 5 . 13 . 81 . . . 85 Terrain Rammed . | . . . . . . . . . . . . . . . . . . Walls Destroyed . | . . . . . . . . . . . . . . . . . . Machines Disabled . | . . . . . . . . . . . . . . . . . . Actions | -11 -10 -10 -9 -9 -9 -8 -8 -7 -7 -6 -6 -6 -5 -5 -5 -5 -5 --------- Run | Yrd Mat Min Mat Min Exi Min Mat Fac Sto Fac Low Dat Pro Fac Upp Upp War Total 8545 | 95 549 364 153 200 597 739 298 906 883 942 345 78 349 306 286 420 1035 Wait 725 | 3 10 . 1 2 5 410 17 49 151 40 5 . . 16 11 . 5 Move 7093 | 71 466 338 115 187 578 309 218 806 653 788 318 78 317 253 250 393 955 Hop . | . . . . . . . . . . . . . . . . . . Pick Up 120 | 6 19 1 4 1 5 3 19 14 8 12 . . 2 5 5 6 10 Fast Attach 42 | 4 4 1 2 . . 1 . 3 6 11 . . 1 . . . 9 Attach 59 | 4 2 2 7 . . 1 3 6 1 7 3 . . 6 3 2 12 Detach 21 | 3 3 1 3 . . . 2 1 . 4 . . . . 1 2 1 Swap 30 | . 3 1 4 . . 2 3 . 3 5 2 . 2 2 1 2 . Drop 118 | 2 9 1 1 . 8 5 18 15 16 17 . . . . 3 5 18 Fire 306 | 2 19 19 14 10 . 4 18 12 43 52 16 . 27 24 11 10 25 Melee 16 | . 13 . 1 . . 1 . . . . . . . . 1 . . Ram . | . . . . . . . . . . . . . . . . . . Kick 6 | . . . . . . . . . . 6 . . . . . . . Crush 5 | . 1 . 1 . . 3 . . . . . . . . . . . Escape Stasis . | . . . . . . . . . . . . . . . . . . Rewire 4 | . . . . . 1 . . . 2 . 1 . . . . . . Trap . | . . . . . . . . . . . . . . . . . . Miscellaneous . | . . . . . . . . . . . . . . . . . . Route ------- -11/Scrapyard -10/Materials (discovered 3 exits: *Mat / *Min x2) -10/Mines (discovered 2 exits: *Mat x2) -9/Materials -9/Mines (discovered 3 exits: *Mat / *Exi / [*Zio]) -9/Exiles -8/Mines -8/Materials -7/Factory -7/Storage -6/Factory (discovered 6 exits: *Fac x4 / *Low x2) -6/Lower Caves -6/Data Miner -5/Proximity Caves -5/Factory (discovered 6 exits: Fac x2 / *Upp x2 / Ext x2) -5/Upper Caves -5/Upper Caves -5/Warlord (discovered 1 exit: [*Pro]) History --------- Turn | Location | Event 2 | -11/Scrapyard | Met Revision 17 76 | -11/Scrapyard | Discovered new exit (range 8) 102 | -11/Scrapyard | Entered Materials 182 | -10/Materials | Identified exit to Mines 316 | -10/Materials | Build established: Mutant 640 | -10/Materials | Discovered new exit (range 7) 1018 | -10/Materials | Entered Mines 1056 | -10/Mines | Met a Derelict bent on vengeance 1062 | -10/Mines | Destroyed YI-UF0 1326 | -10/Mines | Learned Materials stockpile data 1428 | -10/Mines | Discovered new exit (range 16) 1536 | -10/Mines | Found a damaged Exp. Sensor Array with a note attached 1541 | -10/Mines | Found Prototype Device 1541 | -10/Mines | Identified Exp. Sensor Array 1569 | -10/Mines | Discovered new exit (range 9) 1604 | -10/Mines | Core integrity fell below 50% 1613 | -10/Mines | Learned location of Zion (-7) 1622 | -10/Mines | Entered Materials 1622 | -9/Materials | Evolved 2 slots: Propulsion x1, Utility x1 1676 | -9/Materials | Lost 3 parts (1p1n1w) 1789 | -9/Materials | Discovered new exit (range 5) 1876 | -9/Materials | Entered Mines 1943 | -9/Mines | Deemed a non-threat by the Exiles lab entrance 1943 | -9/Mines | Discovered new exit (range 5) 1990 | -9/Mines | A Derelict revealed a hidden shortcut to a safe place 2011 | -9/Mines | Discovered new exit (range 13) 2207 | -9/Mines | Entered Exiles 2252 | -9/Exiles | Met 8R-AWN 2274 | -9/Exiles | Met EX-HEX 2368 | -9/Exiles | Met EX-DEC 2416 | -9/Exiles | Visited The Gauntlet 2691 | -9/Exiles | Met EX-BIN 2713 | -9/Exiles | Aligned with FarCom system 2715 | -9/Exiles | Given EX-Vault access code 2756 | -9/Exiles | Opened EX-Vault 2804 | -9/Exiles | Found XL Autogun Array 2837 | -9/Exiles | Warned to stay clear of 0b10 Research branches 3040 | -9/Exiles | Discovered new exit (range 11) 3147 | -9/Exiles | Left Exiles lab with XL Autogun Array 3147 | -9/Exiles | Entered Mines 4060 | -8/Mines | Discovered new exit (range 9) 4082 | -8/Mines | Entered Materials 4082 | -8/Materials | Evolved 2 slots: Weapon x2 4418 | -8/Materials | Destroyed 8 combat bots 4426 | -8/Materials | Build established: Skirmisher 4493 | -8/Materials | Discovered new exit (range 3) 4499 | -8/Materials | Entered Factory 4499 | -7/Factory | Evolved 2 slots: Utility x2 4829 | -7/Factory | Build established: Tank 5195 | -7/Factory | Garrison activated, responded to threat 5703 | -7/Factory | Discovered new exit (range 7) 5762 | -7/Factory | Entered Storage 5834 | -7/Storage | Assisted by bots powering up and referring to "LRC-V3" 6021 | -7/Storage | Lost 4 allies 6119 | -7/Storage | Build established: Commander-Tank 6161 | -7/Storage | Garrison activated, responded to threat 6199 | -7/Storage | Lost 4 allies 6317 | -7/Storage | Discovered new exit (range 8) 6383 | -7/Storage | Met 01-MTF 6459 | -7/Storage | Build established: Tank 6770 | -7/Storage | Learned location of 1 exit from Extension 6855 | -7/Storage | Learned location of 1 exit from Upper Caves 6864 | -7/Storage | Learned 4 Upper Caves zone layouts 7024 | -7/Storage | Entered Factory 7024 | -6/Factory | Accompanied by 1 ally (01-MTF) 7024 | -6/Factory | Evolved 2 slots: Power x1, Utility x1 7025 | -6/Factory | Identified exit to Lower Caves 7027 | -6/Factory | 01-MTF left 7713 | -6/Factory | Discovered new exit (range 7) 7912 | -6/Factory | Build established: Skirmisher 8034 | -6/Factory | Loaded intel: 54 interactive machine locations 8049 | -6/Factory | Garrison activated, responded to threat 8112 | -6/Factory | Learned 2 Lower Caves zone layouts 8180 | -6/Factory | Learned 4 Upper Caves zone layouts 8238 | -6/Factory | Learned location of 1 exit from Extension 8287 | -6/Factory | Learned location of Upper Caves (-4) 8428 | -6/Factory | Identified exit to Factory 8670 | -6/Factory | Entered Lower Caves 9013 | -6/Lower Caves | Build established: Tank 9045 | -6/Lower Caves | Learned location of 2 exits from Factory 9317 | -6/Lower Caves | A Derelict revealed a hidden shortcut to meet someone special 9326 | -6/Lower Caves | Entered Data Miner 9326 | -6/Data Miner | Discovered new exit (range 6) 9363 | -6/Data Miner | Met Data Miner 9401 | -6/Data Miner | Learned location of Section 7 (-3) 9401 | -6/Data Miner | Acquired the access code to Warlord's prototype stash 9435 | -6/Data Miner | Received God Mode back door access code from Data Miner 9475 | -6/Data Miner | Entered Proximity Caves 9953 | -5/Proximity Caves | Spotted B-75 Beast 9979 | -5/Proximity Caves | Destroyed B-75 Beast 10009 | -5/Proximity Caves | Lost 3 parts (1n1u1w) 10049 | -5/Proximity Caves | Learned Factory machine intel 10148 | -5/Proximity Caves | Entered Factory 10148 | -5/Factory | Evolved 2 slots: Propulsion x1, Utility x1 10149 | -5/Factory | Identified exit to Factory 10149 | -5/Factory | Identified exit to Upper Caves 10149 | -5/Factory | Identified exit to Extension 10151 | -5/Factory | Loaded intel: 263 machine locations 10440 | -5/Factory | Build established: Skirmisher 10498 | -5/Factory | Garrison activated, responded to threat 10537 | -5/Factory | Entered Upper Caves 10538 | -5/Upper Caves | Identified exit to Upper Caves 10812 | -5/Upper Caves | Build established: Scavenger-Tank 10884 | -5/Upper Caves | Attracted the attention of an 0b10 checkpoint 10964 | -5/Upper Caves | Spotted B-75 Beast 10989 | -5/Upper Caves | Entered another Upper Caves area 11331 | -5/Upper Caves | Spotted B-75 Beast 11383 | -5/Upper Caves | Destroyed B-75 Beast 11543 | -5/Upper Caves | Discovered new exit (range 16) 11776 | -5/Upper Caves | Entered Warlord 11854 | -5/Warlord | Discovered new exit (range 15) 12534 | -5/Warlord | Visited the Vortex Lab 12544 | -5/Warlord | Warlord's base attacked by MAIN.C 12580 | -5/Warlord | Found Prototype Energy Cannon 12580 | -5/Warlord | Identified Vortex Cannon 12583 | -5/Warlord | Found Vortex Cannon 12590 | -5/Warlord | Found Prototype Energy Gun 12590 | -5/Warlord | Identified Vortex Shotgun 12594 | -5/Warlord | Found Vortex Shotgun 12814 | -5/Warlord | Met Warlord 12894 | -5/Warlord | Warlord forces counterattacked 12939 | -5/Warlord | Opened Warlord's prototype stash 12950 | -5/Warlord | Found Prototype Reactor 12950 | -5/Warlord | Identified Vortex Chain Reactor 12988 | -5/Warlord | Found Prototype Processor 12994 | -5/Warlord | Found Prototype Hackware 12997 | -5/Warlord | Identified Exp. Armor Integrity Analyzer 13219 | -5/Warlord | Warlord base infiltrated, sounded retreat 13242 | -5/Warlord | Build established: Tank 13396 | -5/Warlord | Spotted Executioner 13504 | -5/Warlord | Destroyed 9 combat bots 13541 | -5/Warlord | Spotted Striker 13606 | -5/Warlord | Destroyed 8 combat bots 13612 | -5/Warlord | Core integrity fell below 50% 13612 | -5/Warlord | Spotted Executioner 13620 | -5/Warlord | Spotted Striker 13634 | -5/Warlord | Core integrity fell below 20% 13639 | -5/Warlord | Destroyed by S-27 Virus with Autogun Last Messages --------------- Penetrated by Slug. Slug penetrates G-50 Soldier. Flexi-carbon Leg destroyed. Exp. Cooling System destroyed. Lgt. Fission Core destroyed. Exp. Armor Integrity Analyzer destroyed. Flexi-carbon Leg destroyed. Slug penetrates Earth. The unstable cave ceiling collapses. Enh. Biometal Leg destroyed. Lrg. Storage Unit destroyed. Slug penetrates Earth. Adv. Heat Sink destroyed. [Achievement: Hunted] ANNOUNCEMENT: MAIN.C reinforcements approaching through caves, arriving soon. Acquired 44 matter. [Achievement: First Step to Greatness] [Achievement: 5k Club] [Achievement: 10k Club] Map ----- +----------------------------------------------------+ | | | | | | | | | | | | | | | | | ??????????????????????????????????? | | ??????????????????????????????????? | | ??????????????????????????????????? | | ??????????????????????????????????? | | #?????????????????????????????????? | | #?????????????????????????????????? | | #?????????????????????????????????? | | #?????????????????????????????????? | | ??????????????????????????????????? | | ??????????????????????????????????? | | ??????????????????????????????????? | | ????????????# ??????????????##????? | | ???????????## ????????????##;#????? | | ??????????## ?????????## ###??? | | ??????????# ?????##?## ##?? | | ??????????# #????# ## < #?? | | ??????????? ????##; #?? | | ???????????? #???# ; @ #??? | | ????????????? ???# ;=K%= #???? | | ?????????????? #??# ;;= #???? | | ??????????????? ??## ;;%= ##???? | | ???????????????# ???##;;K ####??? | | ???????????????# #####ss% # | | ???????????????# s ###?? | | ???????????????## ### ### ##? | | "???????????????## s ##?? ? | | "????????????????### s##?? # | | "#?####???##???????# #??? # ? | | "### ##### ##?????##bEs # #?# | | "" # ## ######; i #? ##? | | " [ % # ;# #?? #? | | " = # # #?? | | " % # # # #?? | | "![ %* ###*# ## #? | | ! % [%[ = *% % ##??? | | % == !%=# ??? | | % % % #### # ?? | | % # ##??# #??? | | "=% = = = ## # #???# ##?? | | "[!=[ #?### #?? | | "[==!!##### # #### # #?? | | "==*# #???## # ###### #?# #?? | +----------------------------------------------------+ Best States ------------- Heat Dissipation 113 Energy Generation 55 Energy Capacity 700 Matter Stores 500 Matter Capacity 500 Sight Range 22 Robot Scan Range 20 Terrain Scan Density 10 Armor Coverage 1425 Core Shielding 20 Evasion (%) 55 Armor Integrity Analysis 50 Recoil Reduction 3 Kinecelleration 30 Offensive Hacking 10 Item Schematics ----------------- Combat Drone Bay | -6/Data Miner | Free Lgt. Regenerative Plating | -6/Data Miner | Free Cld. Gravmag System | -6/Data Miner | Free Adv. EM Disruption Field | -6/Data Miner | Free Ionic Axe | -6/Data Miner | Free Imp. Gyrokinetic Inverter | -6/Data Miner | Free Adv. Transmission Jammer | -6/Data Miner | Free Adv. Concussive RPG | -6/Data Miner | Free Imp. Recalibrator | -6/Data Miner | Free Adv. Thermal Generator | -6/Data Miner | Free Imp. Force Field | -6/Data Miner | Free Mic. Antimatter Reactor | -6/Data Miner | Free Adv. Component Analysis Suite | -6/Data Miner | Free Robot Schematics ------------------ C-35 Carver | -6/Data Miner | Free R-10 Processor | -6/Data Miner | Free Y-64 Sentinel | -6/Data Miner | Free G-50 Soldier | -6/Data Miner | Free Fabricated ------------ Nothing Repaired ---------- Nothing Studied --------- Imp. Treads | -9/Materials | Hacked Lgt. Treads | -9/Materials | Hacked Assault Rifle | -9/Materials | Hacked Lgt. Deuterium Engine | -8/Materials | Hacked Missile Launcher | -7/Factory | Hacked Alien Tech Used ----------------- None Achievements -------------- 10k Club 5k Club A New Friend A Powerful Ally? Adventurer Bumper Bots Crack Shot Explorer Fancy Inventory First Step to Greatness For Emergencies Only Hunted I Have A Map? I'm Back, Baby! Item+ Leap Before You Look Let's See Who's Tougher Librarian Loot Pinata Made in Tau Ceti IV Novice Programmer One Hack Too Far Overwhelming Power Corrupts Protector Quantum Hacking Reappropriation Remodeling Respectable Loadout Risk Taker Serviceable Loadout Sixth Sense Spot Them First Storm Trooper The More The Merrier The Oracle There's More Where That Came From Tourist Troublemaker Well Done Challenges ------------ None Game ------ Seed CarbideProcessingExpander Manual? 0 Play Time 02:28:29 Cumulative 2.4 hours Start 2026.09.05 @ 00:21:04 End 2026.09.06 @ 01:28:05 Sessions 5 Manual Loads 0 Difficulty Rogue Special Mode None Game No. 1 Rogue 1 Adventurer 0 Explorer 0 Win Type - Total 0 Types 0/0/0/0/0/0/0/0/0/0 Lore% 3 Gallery% 4 Achievement% 8 Wizard Run 0 Options --------- Layout 0 ASCII 0 Keyboard 1 Movement Numpad Keybinds 0 Fullscreen 1 Font 18/SmallcapsGlow Map View 76x50 Zoom Use 0% Tactical HUD 0 Map Filters NONE Filters NONE Steam 0 RUN: d181298a-7057-4ae8-bbac-25093a2693cf